Cogmind - Beta 11.1 @@@ ROGUE MODE // 2022.06.20 @ 23:10:02 Player: Savant Result: Destroyed by S-27 Virus with Autogun Performance ------------- Evolutions (3) 1500 Regions Visited (10) 2000 Robots Destroyed (93) 465 Value Destroyed (2683) 2683 Prototype IDs (44) 880 Alien Tech Used (0) 0 Bonus (600) 600 TOTAL SCORE: 8128 Bonus ------- Aligned with FarCom 300 Met Data Miner 300 Cogmind --------- Core Integrity 0/700 Matter 290/300 Energy 95/100 System Corruption 0% Temperature Cool (0) Movement Rolling (195) Ox7 Location -6/Proximity Caves Parts ------- > --- POWER (1) -------- (None) > --- PROPULSION (3) --- Armored Wheel > --- UTILITY (7) ------ Advanced Heat Sink Coolant Injector Huge Storage Unit Structural Scanner Advanced Targeting Computer Hacking Suite > --- WEAPON (2) ------- High-powered Field Laser Power Maul > --- INVENTORY (25) --- Cryofiber Web High-capacity Storage Unit Compact Battery (200) Compact Battery (200) EM Disruption Field Makeshift Hacking Suite Authchip [Device] Component Analysis Suite System Restoration Module Improved Trap Extractor (0/6) Sensor Drone Bay (20/20) Arc Thrower Improved Spread Laser Phase Cannon Gauss Rifle AWS/Autocannon Heavy Rocket Launcher Heavy Missile Launcher Peak State ------------ > --- POWER ------------ Improved Deuterium Engine > --- PROPULSION ------- Advanced Treads Armored Huge Wheel > --- UTILITY ---------- Coolant Injector Huge Storage Unit Structural Scanner Hacking Suite Hacking Suite System Shield Sensor Drone Bay > --- WEAPON ----------- Plasma Flamer Plasma Flamer > --- INVENTORY -------- Advanced Treads Compact Wheel Cryofiber Web Improved Heat Sink High-capacity Storage Unit High-capacity Battery Advanced Targeting Computer Improved Light Armor Plating Improved Medium Armor Plating Reactive Plating Reactive Plating Authchip [Device] Authchip [Armor] System Restoration Module Improved Trap Extractor Improved EM Shotgun Improved EM Pulse Cannon AWS/Autocannon Heavy Rocket Launcher Plasma Flamer Heavy Mace Power Maul [Rating: 57] Favorites ----------- Power Improved Deuterium Engine Engine Improved Deuterium Engine Power Core Neutrino Core Propulsion Compact Wheel Treads Light Treads Wheel Compact Wheel Utility Hacking Suite Device Structural Scanner Storage Huge Storage Unit Processor Advanced Targeting Computer Hackware Hacking Suite Protection Reactive Plating Weapon Improved EM Shotgun Energy Gun Improved EM Shotgun Ballistic Gun Assault Rifle Launcher Heavy Rocket Launcher Special Weapon Plasma Flamer Impact Weapon Power Maul Build | -11 -10 -10 -10 -9 -8 -7 -7 -7 -7 -6 ------- Run | Scr Mat Min Exi Min Mat Fac Low Low Dat Pro Slots Evolved 6 | . . . . . 4 2 . . . . Power . | . . . . . . . . . . . Propulsion 1 | . . . . . 1 . . . . . Utility 5 | . . . . . 3 2 . . . . Weapon . | . . . . . . . . . . . Parts Attached 141 | 7 10 6 . 4 26 51 13 12 . 12 Power 7 | 1 2 . . 1 . 1 . 1 . 1 Engine 5 | 1 2 . . 1 . 1 . . . . Core 2 | . . . . . . . . 1 . 1 Reactor . | . . . . . . . . . . . Propulsion 17 | 2 . . . . 5 7 1 1 . 1 Treads 5 | 1 . . . . 3 1 . . . . Leg . | . . . . . . . . . . . Wheel 12 | 1 . . . . 2 6 1 1 . 1 Hover . | . . . . . . . . . . . Flight . | . . . . . . . . . . . Utility 62 | 1 3 2 . 1 8 29 9 5 . 4 Device 39 | . 2 2 . . 5 17 7 4 . 2 Storage 3 | 1 1 . . 1 . . . . . . Processor 1 | . . . . . . . . . . 1 Hackware 7 | . . . . . 1 6 . . . . Protection 12 | . . . . . 2 6 2 1 . 1 Artifact . | . . . . . . . . . . . Weapon 55 | 3 5 4 . 2 13 14 3 5 . 6 Energy Gun 23 | 1 3 2 . 1 8 3 1 1 . 3 Energy Cannon . | . . . . . . . . . . . Ballistic Gun 4 | 2 1 . . . 1 . . . . . Ballistic Cannon . | . . . . . . . . . . . Launcher 6 | . 1 . . 1 2 . 1 1 . . Special Weapon 14 | . . 2 . . . 8 1 1 . 2 Impact Weapon 8 | . . . . . 2 3 . 2 . 1 Slashing Weapon . | . . . . . . . . . . . Piercing Weapon . | . . . . . . . . . . . Special Melee Weapon . | . . . . . . . . . . . Unidentified Prototypes 5 | . 1 1 . . 2 1 . . . . Parts Lost 23 | . . . . . 1 3 1 7 . 11 Power 3 | . . . . . . . . 1 . 2 Propulsion 6 | . . . . . 1 1 1 2 . 1 Utility 7 | . . . . . . . . 3 . 4 Weapon 7 | . . . . . . 2 . 1 . 4 Highest Loss Streak 7 | . . . . . 1 2 1 4 . 7 To Critical Strikes 1 | . . . . . . . . 1 . . Average Slot Usage (%) 91 | . 98 91 100 100 98 92 91 80 84 82 Engine 6 | . 14 14 14 14 9 7 7 . . . Core 1 | . . . . . . . . 2 7 7 Treads 5 | . 14 14 14 14 9 3 . . . . Wheel 12 | . 14 14 14 14 17 13 14 8 7 7 Device 13 | . 12 5 14 14 18 12 7 13 15 18 Storage 8 | . 14 14 14 14 9 7 7 7 7 7 Hackware 12 | . . . . . 1 22 23 23 23 13 Protection 8 | . . . . . 14 9 15 8 7 6 Energy Gun 11 | . 20 26 28 26 17 2 7 7 7 9 Special Weapon 2 | . . 1 . . . 9 6 . . . Impact Weapon 2 | . . . . . . 2 . 5 7 4 Naked Turns . | . . . . . . . . . . . Heaviest Build 115 | 12 30 30 30 97 111 114 106 113 113 115 Greatest Support 40 | 16 16 16 16 16 32 40 40 40 28 28 Greatest Overweight (x) 7 | . 1 1 1 6 6 6 2 4 4 7 Average Overweight (x) 2 | . . 1 1 3 3 2 2 3 4 4 Largest Inventory Capacity 25 | 8 15 15 15 25 25 25 25 25 25 25 Average Capacity 22 | 6 10 15 15 20 25 25 25 25 25 25 Most Carried 25 | 4 10 15 15 19 25 25 25 24 24 24 Average Carried 20 | 2 8 12 14 16 23 24 24 21 24 21 Final Capacity 25 | 8 15 15 15 25 25 25 25 25 25 25 Final Carried 25 | 4 10 14 15 19 25 25 24 24 24 20 Class Distribution -------------------- 52% | Hacker-Mutant 47% | Mutant Dominant Class ---------------- Mutant | -10/Materials Mutant | -10/Mines Mutant | -10/Exiles Mutant | -9/Mines Mutant | -8/Materials Hacker-Mutant | -7/Factory Hacker-Mutant | -7/Lower Caves Hacker-Mutant | -7/Lower Caves Hacker-Mutant | -7/Data Miner Mutant | -6/Proximity Caves Resources | -11 -10 -10 -10 -9 -8 -7 -7 -7 -7 -6 ----------- Run | Scr Mat Min Exi Min Mat Fac Low Low Dat Pro Matter Collected 1801 | 205 150 124 . 82 346 422 256 141 . 75 Remotely . | . . . . . . . . . . . Salvage Created 2568 | . 174 260 . 106 812 394 240 259 . 323 Parts 136 | . 15 17 . 8 58 16 7 7 . 8 Haulers Intercepted 3 | . . . . . 3 . . . . . Recyclers Shooed 1 | . . . . . 1 . . . . . Parts Field Recycled . | . . . . . . . . . . . Retrieved Matter . | . . . . . . . . . . . Parts Self-Destructed 23 | . . . . . . . 10 6 . 7 Prevented . | . . . . . . . . . . . Kills | -11 -10 -10 -10 -9 -8 -7 -7 -7 -7 -6 ------- Run | Scr Mat Min Exi Min Mat Fac Low Low Dat Pro Combat Hostiles Destroyed 72 | . 5 8 . 4 18 12 9 9 . 7 Melee 4 | . . . . . . 2 . 2 . . Guns 29 | . 2 7 . . 5 4 3 2 . 6 Cannons 4 | . . . . . . 2 2 . . . AOE 25 | . 3 1 . 4 12 . 3 2 . . Classes Destroyed 14 | . 4 1 . 2 3 3 1 . . . Worker 4 | . . . . . . 4 . . . . Builder 4 | . . . . . 4 . . . . . Tunneler 1 | . . . . 1 . . . . . . Hauler 3 | . . . . . 3 . . . . . Recycler 2 | . . . . 1 1 . . . . . Operator 1 | . 1 . . . . . . . . . Watcher 8 | . 2 . . . 5 1 . . . . Swarmer 31 | . 3 2 . 4 13 4 3 2 . . Grunt 28 | . 2 4 . . 4 5 3 3 . 7 Duelist 2 | . . . . . . . 1 1 . . Sentry 3 | . . . . . . 1 1 1 . . Hunter 1 | . . . . . 1 . . . . . Programmer 5 | . . . . . . 2 1 2 . . Assembled 2 | . . 2 . . . . . . . . Best Kill Streak 9 | . 4 3 . 6 9 6 4 4 . 7 Combat Bots Only 8 | . 3 3 . 4 8 4 4 4 . 7 Max Kills in Single Turn 7 | . 3 1 . 2 7 1 2 2 . 1 Gunslinging 1 | . . . . . 1 . . . . . Exploded 7 | . 3 1 . 2 7 . 2 2 . . Melee 1 | . . . . . . 1 . 1 . . Uniques/NPCs Destroyed . | . . . . . . . . . . . Combat | -11 -10 -10 -10 -9 -8 -7 -7 -7 -7 -6 -------- Run | Scr Mat Min Exi Min Mat Fac Low Low Dat Pro Damage Taken 4233 | . 197 104 . 48 305 824 547 956 . 1252 Core 853 | . 42 20 . 9 70 77 84 214 . 337 Absorbed by Shields . | . . . . . . . . . . . Redirected to Shielding 209 | . . . . . . 9 74 100 . 26 Regen/Repaired (Parts) 165 | . 31 . . . . 134 . . . . Core Remaining (%) 86 | 100 . . . 71 87 . . . . . Volleys Fired 165 | . 14 23 . 6 34 34 21 13 . 20 Largest 2 | . 2 2 . 1 2 2 2 2 . 2 Hottest 200 | . 90 145 . 33 90 200 175 175 . 175 Shots Fired 286 | . 28 35 . 6 60 63 37 17 . 40 Gun 185 | . 27 23 . . 53 19 19 11 . 33 Cannon . | . . . . . . . . . . . Launcher 20 | . 1 . . 6 7 . 2 4 . . Special 81 | . . 12 . . . 44 16 2 . 7 Kinetic 13 | . 13 . . . . . . . . . Thermal 159 | . . 12 . . . 59 35 13 . 40 Explosive 20 | . 1 . . 6 7 . 2 4 . . Electromagnetic 94 | . 14 23 . . 53 4 . . . . Robot Hit Streak 15 | . 6 7 . 1 11 9 12 10 . 15 Robot Miss Streak 7 | . 4 3 . 2 7 4 7 3 . 3 Penetration Max . | . . . . . . . . . . . Secondary Targets 2 | . . . . . 1 . . . . 1 Max Gunslinging Chain 1 | . . . . . 1 . . . . 1 Shots Hit Robots 224 | . 13 20 . 2 45 55 29 25 . 35 Core Hits 183 | . 10 15 . 5 46 20 30 17 . 40 Critical Kills 2 | . . . . . . 2 . . . . Critical Parts Destroyed 6 | . . . . . . 2 . 4 . . Critical Strikes 20 | . 1 . . . . 10 2 6 . 1 Burn 10 | . . . . . . 6 2 1 . 1 Corrupt 1 | . 1 . . . . . . . . . Smash 9 | . . . . . . 4 . 5 . . Melee Attacks 64 | . . . . . 4 22 . 28 . 10 Impact 64 | . . . . . 4 22 . 28 . 10 Slashing . | . . . . . . . . . . . Piercing . | . . . . . . . . . . . Sneak Attacks 4 | . . . . . . 4 . . . . Combat Hostiles . | . . . . . . . . . . . Follow-up Attacks . | . . . . . . . . . . . Damage Inflicted 7019 | . 342 330 . 424 1910 1306 806 1091 . 810 Guns 2985 | . 209 236 . . 860 317 399 222 . 742 Cannons . | . . . . . . . . . . . Explosions 2337 | . 133 70 . 424 1050 . 290 370 . . Melee 1010 | . . . . . . 543 . 467 . . Ramming . | . . . . . . . . . . . Kinetic 100 | . 100 . . . . . . . . . Thermal 2615 | . . 94 . . 215 726 516 254 . 810 Explosive 2052 | . 133 . . 424 835 . 290 370 . . Electromagnetic 1242 | . 109 236 . . 860 37 . . . . Impact 1010 | . . . . . . 543 . 467 . . Slashing . | . . . . . . . . . . . Piercing . | . . . . . . . . . . . Highest Corruption 1 | . . . . 1 . 1 . . . . Average Corruption 1 | . . . . 1 . 1 . . . . Corruption Purged 2 | . . . . . . 2 . . . . Corruption Blocked . | . . . . . . . . . . . Effects 1 | . . . . 1 . . . . . . Energy Discharges 1 | . . . . 1 . . . . . . Overload Shots 3 | . . . . . . . . . . 3 Overflow Damage 430 | . 2 . . 13 9 248 3 155 . . Projectiles 21 | . . . . . . 21 . . . . Explosions 27 | . 2 . . 13 9 . 3 . . . Melee 382 | . . . . . . 227 . 155 . . Knockbacks 1 | . . . . . . 1 . . . . Impact 1 | . . . . . . 1 . . . . Kinetic . | . . . . . . . . . . . Secondary . | . . . . . . . . . . . Self-Inflicted Damage 122 | . . 6 . . 51 . . 65 . . Shots 4 | . . 1 . . 1 . . 2 . . Rammed . | . . . . . . . . . . . Targets Rammed . | . . . . . . . . . . . Kicked . | . . . . . . . . . . . Crushed . | . . . . . . . . . . . Highest Temperature 197 | . 90 115 . . 126 189 57 57 . 197 Average Temperature 46 | . 47 35 . . 33 40 22 22 . 114 Received Heat Transfer 1222 | . 90 40 . . 45 192 216 180 . 459 Siege Activations . | . . . . . . . . . . . Robots Corrupted 1 | . . . . . 1 . . . . . Combat Hostiles 1 | . . . . . 1 . . . . . Parts Fried 9 | . . . . . 3 4 . 2 . . Impact Corruptions 11 | . . . . . . 5 . 6 . . Robots Melted 7 | . . . . . . 3 1 2 . 1 Combat Hostiles 7 | . . . . . . 3 1 2 . 1 Parts Melted 9 | . . . . . 1 4 . 2 . 2 Heat Transferred 7877 | . . 200 . . 300 4044 1433 522 . 1378 Parts Sabotaged . | . . . . . . . . . . . Parts Stolen . | . . . . . . . . . . . Parts Stripped . | . . . . . . . . . . . Power Chain Reactions 5 | . . 1 . . 4 . . . . . Missiles Intercepted . | . . . . . . . . . . . Alert | -11 -10 -10 -10 -9 -8 -7 -7 -7 -7 -6 ------- Run | Scr Mat Min Exi Min Mat Fac Low Low Dat Pro Peak Influence 352 | . 229 110 . 190 352 164 . . . . Initial 159 | . . 37 . . 74 159 . . . . Average 108 | . 75 53 . 153 161 83 . . . . Maximum Alert Level 1 | . 1 . . . 1 . . . . . Low Security (%) 87 | 100 97 100 . 100 66 100 . . . . Level 1 12 | . 2 . . . 33 . . . . . Level 2 . | . . . . . . . . . . . Level 3 . | . . . . . . . . . . . Level 4 . | . . . . . . . . . . . Level 5 . | . . . . . . . . . . . High Security . | . . . . . . . . . . . Max Security . | . . . . . . . . . . . Squads Dispatched 9 | . 1 . . . 3 5 . . . . Investigation 5 | . 1 . . . 2 2 . . . . Extermination 2 | . . . . . . 2 . . . . Reinforcement 2 | . . . . . 1 1 . . . . Assault . | . . . . . . . . . . . Garrison . | . . . . . . . . . . . Intercept . | . . . . . . . . . . . Searches Triggered . | . . . . . . . . . . . Construction Impeded 1 | . . . . . 1 . . . . . Haulers Reinforced 1 | . . . . . . 1 . . . . Active Scanning Responses . | . . . . . . . . . . . Cargo Convoy Interrupts . | . . . . . . . . . . . Stealth | -11 -10 -10 -10 -9 -8 -7 -7 -7 -7 -6 --------- Run | Scr Mat Min Exi Min Mat Fac Low Low Dat Pro Distress Signals 5 | . . . . . 3 2 . . . . Communications Jammed . | . . . . . . . . . . . Distress Signals . | . . . . . . . . . . . Times Spotted 107 | . 9 8 . 2 28 26 9 9 . 16 Peak Tracking Total 10 | . 3 3 . 1 10 4 5 5 . 8 Tactical Retreats 6 | . . 1 . . . 2 . . . 3 Traps | -11 -10 -10 -10 -9 -8 -7 -7 -7 -7 -6 ------- Run | Scr Mat Min Exi Min Mat Fac Low Low Dat Pro Traps Triggered 5 | . . . . 1 . 4 . . . . Indirectly . | . . . . . . . . . . . Trap Hack Attempts . | . . . . . . . . . . . Triggered . | . . . . . . . . . . . Disarmed . | . . . . . . . . . . . Reprogrammed . | . . . . . . . . . . . Reused . | . . . . . . . . . . . Traps Extracted . | . . . . . . . . . . . Installed . | . . . . . . . . . . . Triggered . | . . . . . . . . . . . Machines | -11 -10 -10 -10 -9 -8 -7 -7 -7 -7 -6 ---------- Run | Scr Mat Min Exi Min Mat Fac Low Low Dat Pro Machines Disabled 4 | . 1 . . . 3 . . . . . Max in Single Turn 1 | . 1 . . . 1 . . . . . Garrison Access 3 | . . . . . 1 2 . . . . Machines Sabotaged . | . . . . . . . . . . . Garrisons Compromised . | . . . . . . . . . . . Overloaded Fab Kills . | . . . . . . . . . . . Hacking | -11 -10 -10 -10 -9 -8 -7 -7 -7 -7 -6 --------- Run | Scr Mat Min Exi Min Mat Fac Low Low Dat Pro Machines Accessed 48 | . 9 1 2 1 14 14 1 2 4 . Terminals 19 | . 7 . . . 8 4 . . . . Fabricators 3 | . . . . . . 3 . . . . Repair Stations 4 | . 1 . . . 1 2 . . . . Recycling Units 5 | . 1 . . . 2 2 . . . . Scanalyzers 3 | . . . . . 2 1 . . . . Garrison Access 3 | . . . . . 1 2 . . . . Total Hacks 187 | . 28 1 2 1 53 64 1 13 24 . Successful 153 | . 20 1 2 1 43 48 1 13 24 . Failed 34 | . 8 . . . 10 16 . . . . Catastrophic 1 | . 1 . . . . . . . . . Database Lockouts . | . . . . . . . . . . . Manual 57 | . 20 . 1 . 19 17 . . . . Terminals 70 | . 25 . . . 26 19 . . . . Fabricators 18 | . . . . . . 18 . . . . Repair Stations 9 | . 2 . . . 2 5 . . . . Recycling Units 12 | . 1 . . . 4 7 . . . . Scanalyzers 32 | . . . . . 20 12 . . . . Garrison Access 4 | . . . . . 1 3 . . . . Terminal Hacks 69 | . 9 1 2 1 10 8 1 13 24 . Record 19 | . . . 1 . . . . 12 6 . Part Schematic 9 | . . . . . . 1 . . 8 . Robot Schematic 7 | . . . . . . . . . 7 . Robot Analysis 4 | . 3 . . . . 1 . . . . Prototype ID Bank 4 | . . . . . 1 . . . 3 . Open Door 4 | . . 1 . 1 . . 1 1 . . Branch Access Points 1 | . . . . . . 1 . . . . Terminal Index 3 | . 1 . . . 1 1 . . . . Fabricator Index 1 | . . . . . . 1 . . . . Recycling Unit Index 2 | . 1 . . . 1 . . . . . Alert Level 1 | . 1 . . . . . . . . . Locate Traps 3 | . 2 . . . 1 . . . . . Transport Status 1 | . . . . . 1 . . . . . Hauler Manifests 2 | . . . . . 1 1 . . . . Zone Layout 7 | . 1 . . . 4 2 . . . . EX-Prototype ID Bank 1 | . . . 1 . . . . . . . Fabricator Hacks 13 | . . . . . . 13 . . . . Network Status 1 | . . . . . . 1 . . . . Load Schematic 5 | . . . . . . 5 . . . . Build 7 | . . . . . . 7 . . . . Repair Station Hacks 8 | . 2 . . . 2 4 . . . . Scan Component 4 | . 1 . . . 1 2 . . . . Repair 4 | . 1 . . . 1 2 . . . . Recycling Unit Hacks 4 | . . . . . 2 2 . . . . Report Inventory 3 | . . . . . 2 1 . . . . Retrieve Components 1 | . . . . . . 1 . . . . Scanalyzer 32 | . . . . . 20 12 . . . . Insert Component 13 | . . . . . 8 5 . . . . Analyze 19 | . . . . . 12 7 . . . . Garrison Access Hacks 4 | . . . . . 1 3 . . . . Seal Access 3 | . . . . . 1 2 . . . . Coupler Status 1 | . . . . . . 1 . . . . Unauthorized Hacks 23 | . 9 . . . 8 6 . . . . Terminals 17 | . 8 . . . 6 3 . . . . Track 1 | . . . . . 1 . . . . . Assimilate 5 | . 4 . . . 1 . . . . . Botnet 8 | . 3 . . . 3 2 . . . . Operators 3 | . 1 . . . 1 1 . . . . Fabricators 1 | . . . . . . 1 . . . . Prioritize 1 | . . . . . . 1 . . . . Repair Stations . | . . . . . . . . . . . Recycling Units 5 | . 1 . . . 2 2 . . . . Reject 1 | . . . . . . 1 . . . . Mask 1 | . . . . . . 1 . . . . Tunnel 3 | . 1 . . . 2 . . . . . Scanalyzers . | . . . . . . . . . . . Garrison Access . | . . . . . . . . . . . Data Cores Recovered 2 | . 1 . . . 1 . . . . . Used 1 | . 1 . . . . . . . . . Hacking Detections 27 | . 8 . . . 10 9 . . . . Full Trace Events 1 | . . . . . . 1 . . . . Feedback Events . | . . . . . . . . . . . Feedback Blocked . | . . . . . . . . . . . Robot Schematics Acquired 7 | . . . . . . . . . 7 . Robots Built 3 | . . . . . . 3 . . . . Authchips . | . . . . . . . . . . . Time 44 | . . . . . . 44 . . . . Total Robot Build Rating 12 | . . . . . . 12 . . . . Part Schematics Acquired 22 | . . . . . 8 6 . . 8 . Parts Built 8 | . . . . . . 8 . . . . Authchips 4 | . . . . . . 4 . . . . Time 266 | . . . . . . 266 . . . . Total Part Build Rating 34 | . . . . . . 34 . . . . Parts Repaired 4 | . 1 . . . 1 2 . . . . Time 153 | . 26 . . . 61 66 . . . . Parts Recycled . | . . . . . . . . . . . Recycled Matter . | . . . . . . . . . . . Retrieved Matter . | . . . . . . . . . . . Retrieved Components 3 | . . . . . . 3 . . . . Parts Scanalyzed 13 | . . . . . 8 5 . . . . Part Schematics Acquired 13 | . . . . . 8 5 . . . . Parts Damaged 1 | . . . . . 1 . . . . . Bothacking | -11 -10 -10 -10 -9 -8 -7 -7 -7 -7 -6 ------------ Run | Scr Mat Min Exi Min Mat Fac Low Low Dat Pro Used RIF Installer . | . . . . . . . . . . . Robots Hacked . | . . . . . . . . . . . Non-combat . | . . . . . . . . . . . Combat . | . . . . . . . . . . . Robot Hacks Applied . | . . . . . . . . . . . Relay Couplers Released . | . . . . . . . . . . . Fabnet Peak Effective % . | . . . . . . . . . . . Robots Rewired . | . . . . . . . . . . . Allies Hacked . | . . . . . . . . . . . Hacks Repelled . | . . . . . . . . . . . Allies | -11 -10 -10 -10 -9 -8 -7 -7 -7 -7 -6 -------- Run | Scr Mat Min Exi Min Mat Fac Low Low Dat Pro Total Allies 7 | . 1 2 . . . 3 . . . 1 Largest Group 3 | . 1 3 1 1 1 3 . . . 1 Highest-Rated Group 96 | . 10 46 10 10 10 60 . . . 96 Highest-Rated Ally 96 | . 10 31 10 10 10 20 . . . 96 Total Orders 8 | . 2 2 . 2 . 2 . . . . STAY 3 | . 1 1 . 1 . . . . . . FOLLOW 3 | . 1 1 . 1 . . . . . . RETURN 2 | . . . . . . 2 . . . . Ally Attacks 8 | . . . . . . 2 . . . 6 Total Damage 402 | . . . . . . 28 . . . 374 Kills . | . . . . . . . . . . . Allies Corrupted 1 | . . 1 . . . . . . . . Allies Melted . | . . . . . . . . . . . Intel | -11 -10 -10 -10 -9 -8 -7 -7 -7 -7 -6 ------- Run | Scr Mat Min Exi Min Mat Fac Low Low Dat Pro Robot Analysis Total 4 | . 3 . . . . 1 . . . . Derelict Logs Recovered 10 | . . 3 . . . . 3 2 . 2 Drone Launches 2 | . . . . . . 2 . . . . Drone Recoveries 2 | . . . . . . 2 . . . . Exploration | -11 -10 -10 -10 -9 -8 -7 -7 -7 -7 -6 ------------- Run | Scr Mat Min Exi Min Mat Fac Low Low Dat Pro Turns Passed 11178 | 59 775 837 325 200 2352 2307 1000 1928 120 1275 Spaces Moved 7126 | 45 655 630 280 104 1421 1346 724 1206 76 639 Core 1 | 1 . . . . . . . . . . Treads . | . . . . . . . . . . . Legs . | . . . . . . . . . . . Wheels 7125 | 44 655 630 280 104 1421 1346 724 1206 76 639 Hover . | . . . . . . . . . . . Flight . | . . . . . . . . . . . Fastest Speed 50 | 50 100 115 115 115 145 120 125 125 160 145 Average Speed 135 | 98 106 115 115 148 148 134 125 147 160 160 Slowest Speed 195 | 100 115 115 115 190 190 190 125 160 160 195 Overloaded Moves . | . . . . . . . . . . . Propulsion Burnouts . | . . . . . . . . . . . Robots Hopped . | . . . . . . . . . . . Cave-ins Triggered . | . . . . . . . . . . . Exploration Rate (%) 63 | 4 82 99 70 19 73 37 74 98 68 77 Regions Visited 10 Branch Regions 7 Pre-discovered Areas 10 | . 1 2 1 . 2 . 1 1 1 1 Known Exits Taken 3 | . . . . . 1 1 1 . . . Unknown Exits Taken 7 | 1 1 1 1 1 . . . 1 1 . Scrap Searched 10 | . . 1 . 1 . . 4 2 . 2 Spaces Dug 44 | . . . . 11 4 13 . 9 . 7 Terrain Destroyed 204 | . 8 1 . 54 50 13 30 40 . 8 Melee 33 | . . . . . 4 13 . 9 . 7 Projectile 1 | . . . . . . . . . . 1 AOE 170 | . 8 1 . 54 46 . 30 31 . . Terrain Rammed . | . . . . . . . . . . . Walls Destroyed . | . . . . . . . . . . . Machines Disabled . | . . . . . . . . . . . Actions | -11 -10 -10 -10 -9 -8 -7 -7 -7 -7 -6 --------- Run | Scr Mat Min Exi Min Mat Fac Low Low Dat Pro Total 8128 | 55 706 682 284 142 1605 1707 769 1277 75 826 Wait 486 | . 13 17 . 24 66 203 11 11 . 141 Move 7116 | 44 654 629 279 103 1420 1345 723 1205 75 639 Hop . | . . . . . . . . . . . Pick Up 90 | 4 8 5 2 4 29 27 . 7 . 4 Fast Attach 21 | 6 3 . . . 6 4 . 1 . 1 Attach 33 | . . 2 . . 5 12 1 5 . 8 Detach 4 | . . 1 . . 1 2 . . . . Swap 87 | 1 7 4 . 4 15 35 12 6 . 3 Drop 62 | . 7 1 3 1 25 23 1 1 . . Fire 165 | . 14 23 . 6 34 34 21 13 . 20 Melee 64 | . . . . . 4 22 . 28 . 10 Ram . | . . . . . . . . . . . Kick . | . . . . . . . . . . . Crush . | . . . . . . . . . . . Escape Stasis . | . . . . . . . . . . . Rewire . | . . . . . . . . . . . Trap . | . . . . . . . . . . . Miscellaneous . | . . . . . . . . . . . Route ------- -11/Scrapyard -10/Materials (discovered 4 exits: [*Mat x2] / *Min x2) -10/Mines (discovered 3 exits: [*Mat x2] / *Exi) -10/Exiles -9/Mines -8/Materials (discovered 3 exits: *Fac x3) -7/Factory (discovered 4 exits: *Fac / *Sto / *Low x2) -7/Lower Caves -7/Lower Caves (discovered 2 exits: *Fac / *Dat) -7/Data Miner -6/Proximity Caves (discovered 1 exit: *Fac) History --------- Turn | Location | Event 17 | -11/Scrapyard | Discovered new exit (range 16) 60 | -11/Scrapyard | Entered Materials 161 | -10/Materials | Discovered new exit (range 11) 309 | -10/Materials | Build established: Mutant 388 | -10/Materials | Discovered new exit (range 14) 424 | -10/Materials | Discovered new exit (range 8) 559 | -10/Materials | Discovered new exit (range 6) 665 | -10/Materials | Repaired Grenade Launcher? 835 | -10/Materials | Entered Mines 835 | -10/Mines | Accompanied by 1 ally 869 | -10/Mines | Deemed a non-threat by the Exiles lab entrance 869 | -10/Mines | Discovered new exit (range 6) 928 | -10/Mines | A weapon hastily lodged in a ceiling crevice suddenly fell to the ground 999 | -10/Mines | Excavation squad dispatched 999 | -10/Mines | A large section of the Mines collapsed 1149 | -10/Mines | Learned location of Zion (-6) 1212 | -10/Mines | Received a Rocket Launcher from a helpful Derelict 1269 | -10/Mines | Discovered new exit (range 6) 1361 | -10/Mines | Found the Drone Emporium 1364 | -10/Mines | Found Prototype Device 1370 | -10/Mines | Identified Sensor Drone Bay 1386 | -10/Mines | Discovered new exit (range 10) 1446 | -10/Mines | Learned location of 1 exit from Materials 1672 | -10/Mines | Entered Exiles 1672 | -10/Exiles | Accompanied by 1 ally 1700 | -10/Exiles | Met 8R-AWN 1720 | -10/Exiles | Met EX-HEX 1762 | -10/Exiles | Met EX-DEC 1807 | -10/Exiles | Met EX-BIN 1823 | -10/Exiles | Aligned with FarCom system 1824 | -10/Exiles | Given EX-Vault access code 1854 | -10/Exiles | Opened EX-Vault 1864 | -10/Exiles | Found AWS/Autocannon 1889 | -10/Exiles | Warned to stay clear of 0b10 Research branches 1988 | -10/Exiles | Discovered new exit (range 10) 1997 | -10/Exiles | Left Exiles lab with AWS/Autocannon 1997 | -10/Exiles | Entered Mines 1997 | -9/Mines | Accompanied by 1 ally 2060 | -9/Mines | Discovered new exit (range 11) 2073 | -9/Mines | Met a Derelict who couldn't figure out how to use a Trap Extractor 2197 | -9/Mines | Entered Materials 2197 | -8/Materials | Accompanied by 1 ally 2197 | -8/Materials | Evolved 4 slots: Propulsion x1, Utility x3 2198 | -8/Materials | Identified exit to Factory 2531 | -8/Materials | Repaired Broken Hvy. Rocket Launcher 2666 | -8/Materials | Discovered exit to Factory (range 8) 3047 | -8/Materials | Destroyed 8 combat bots 4191 | -8/Materials | Discovered exit to Factory (range 9) 4549 | -8/Materials | Entered Factory 4549 | -7/Factory | Evolved 2 slots: Utility x2 4724 | -7/Factory | Fabricated Coolant Injector (x2) 4791 | -7/Factory | Fabricated Plasma Flamer? 4840 | -7/Factory | Build established: Hacker-Mutant 4895 | -7/Factory | Fabricated Plasma Flamer (x1) 4944 | -7/Factory | Fabricated Plasma Flamer (x1) 5195 | -7/Factory | Fabricated B-48 Gladiator (x3) 5266 | -7/Factory | Discovered new exit (range 7) 5280 | -7/Factory | Identified exit to Factory 5598 | -7/Factory | Repaired Imp. Medium Armor Plating? 5655 | -7/Factory | Repaired System Restoration Module? 6008 | -7/Factory | Discovered new exit (range 6) 6028 | -7/Factory | Identified exit to Storage 6028 | -7/Factory | Identified exit to Lower Caves 6607 | -7/Factory | Fabricated Imp. Weapon Shielding (x2) 6685 | -7/Factory | Fabricated Plasma Flamer? 6856 | -7/Factory | Entered Lower Caves 7174 | -7/Lower Caves | Identified exit to Lower Caves 7217 | -7/Lower Caves | Learned 8 Factory zone layouts 7531 | -7/Lower Caves | Attracted the attention of an 0b10 checkpoint 7856 | -7/Lower Caves | Entered another Lower Caves area 7928 | -7/Lower Caves | Discovered exit to Factory (range 10) 8004 | -7/Lower Caves | Learned Factory trap positions 8136 | -7/Lower Caves | Lost 3 parts (1p1n1w) 8189 | -7/Lower Caves | Lost 4 parts (1n3u) 8191 | -7/Lower Caves | Learned location of 1 exit from Factory 8193 | -7/Lower Caves | Learned location of Armory (-4) 8193 | -7/Lower Caves | Learned 8 Factory zone layouts 8193 | -7/Lower Caves | Learned 8 Research zone layouts 8193 | -7/Lower Caves | Learned Extension trap positions 8193 | -7/Lower Caves | Learned Armory stockpile data 8193 | -7/Lower Caves | Learned Extension terminal intel 8193 | -7/Lower Caves | Learned Armory terminal intel 8193 | -7/Lower Caves | Learned Extension garrison access intel 8480 | -7/Lower Caves | Core integrity fell below 50% 9253 | -7/Lower Caves | Encountered a Warlord checkpoint 9401 | -7/Lower Caves | Discovered new exit (range 15) 9784 | -7/Lower Caves | Entered Data Miner 9784 | -7/Data Miner | Discovered new exit (range 6) 9815 | -7/Data Miner | Met Data Miner 9842 | -7/Data Miner | Learned location of Section 7 (-2) 9868 | -7/Data Miner | Received God Mode back door access code from Data Miner 9904 | -7/Data Miner | Entered Proximity Caves 9984 | -6/Proximity Caves | Learned 4 Factory zone layouts 10045 | -6/Proximity Caves | Spotted B-75 Beast 10487 | -6/Proximity Caves | Lost 7 parts (1p3u3w) 10494 | -6/Proximity Caves | Core integrity fell below 20% 10525 | -6/Proximity Caves | Destroyed 7 combat bots 10706 | -6/Proximity Caves | Build established: Mutant 11009 | -6/Proximity Caves | Discovered exit to Factory (range 10) 11179 | -6/Proximity Caves | Destroyed by S-27 Virus with Autogun Last Messages --------------- 10708_ Found EM Disruption Field. 10708_ Found Phase Cannon. 10708_ Found 19 Matter. 10711_ Acquired Phase Cannon. 10717_ Acquired EM Disruption Field. 10723_ Searching scrap... 10723_ Found Arc Thrower. 10723_ Found Hvy. Missile Launcher. 10723_ Found 31 Matter. 10726_ Acquired Arc Thrower. 10730_ Acquired Hvy. Missile Launcher. 10848_ Acquired 4 matter. 10853_ Acquired 1 matter. 10856_ Acquired 3 matter. 10859_ Acquired 1 matter. 10958_ 2K-1K9(k) breaks down the debris. 11009_ EXIT=FOUND: FACTORY 11169_ Reactive Plating destroyed. 11170_ Neutrino Core destroyed. 11173_ Arm. Huge Wheel destroyed. Map ----- +----------------------------------------------------+ | ?????????????????????????????????????????????????? | | ?????????????????????????????????????????????????? | | ?????????????????????????????????????????????????? | | ?????????????????????????????????????????????????? | | ?????????????????????????????????????????????????? | | ?????????????????????????????????????????????????? | | ?????????????????????????????????????????????????? | | ?????????????????????????????????????????????????? | | ?????????????????????????????????????????????????? | | ?????????????????????????????????????????????????? | | ?????????????????????????????????????????????????? | | ?????????????????????????????????????????????????? | | ?????????????????????????????????????????????????? | | ?????????????????????????????????????????????????? | | ?????????????????????????????????????????????????? | | ?????????????????????????????????????????????????? | | ?????????????????????????????????????????????????? | | ?????????????????????????????????????????????????? | | ?????????????????????????????????????????????????? | | ???????????????????????????????????#####?????????? | | ??????????????????????????##############?????????? | | ??????????????????????############# ##?????????? | | ?????????????############## ##?????????? | | ?????????############### ##?????????? | | ?????????###### < ##? ##?????????? | | ?????????## ####### @ s ###?????????????? | | ?????????## ######### ###??????????????? | | ?????????## #############s ###??###?????????? | | #####???### ############ ## ##?????????? | | ######?#### #### # ## ##?????????? | | # ###?### ## ## ##?????????? | | ##### ### ## ##? ###????????? | | ##### ### ### ? ##????????? | | #### ##????????? | | % ##### ##????????? | | ### ##### ## ####### ??????????? | | ### ######## ######?### #??????????? | | ####?### #####???# ####??????????? | | % ##???## ####????? ## ####??????????? | | #####?## #####???? #### #????????????? | | ######## ####??? #### ?????????????? | | ###### ###??# ##??? ???????????????? | | ####### ##??######?????????????????????? | | ####### ####??#####??????????????????????? | | "## ####?????????????????????????????? | | ###### ##???????????????????????????????? | | ####### #######???????????????????????????????? | | ####### #######???????????????????????????????? | | ##???## ##????????????????????????????????????? | | # ###??## ###???????????????????????????????????? | +----------------------------------------------------+ Best States ------------- Heat Dissipation 61 Coolant Potential 65 Energy Generation 19 Energy Capacity 315 Matter Stores 300 Matter Capacity 300 Sight Range 16 Terrain Scan Density 10 Additional Mass Support 9 Armor Coverage 375 Resistance: KI 20 Weapon Shielding 66 Evasion (%) 40 Targeting Accuracy 8 Recoil Reduction 1 Offensive Hacking 20 Defensive Hacking 10 Authchip Count 5 Item Schematics ----------------- Plasma Flamer | -8/Materials | Scanalyzed Structural Scanner | -8/Materials | Scanalyzed Hvy. Rocket Launcher | -8/Materials | Scanalyzed Hacking Suite | -8/Materials | Scanalyzed System Shield | -8/Materials | Scanalyzed Hcp. Storage Unit | -8/Materials | Scanalyzed Imp. Trap Extractor | -8/Materials | Scanalyzed Adv. Targeting Computer | -8/Materials | Scanalyzed Arm. Huge Wheel | -7/Factory | Scanalyzed Arm. Wheel | -7/Factory | Scanalyzed System Restoration Module | -7/Factory | Scanalyzed Cryofiber Web | -7/Factory | Scanalyzed Power Maul | -7/Factory | Scanalyzed Imp. Weapon Shielding | -7/Factory | Hacked Combat Drone Bay | -7/Data Miner | Free Lgt. Regenerative Plating | -7/Data Miner | Free Biomechanical Wings | -7/Data Miner | Free Gravity Neutralizer | -7/Data Miner | Free Cld. Plasma Cannon | -7/Data Miner | Free Hvy. Treads | -7/Data Miner | Free Imp. Shock Absorption System | -7/Data Miner | Free Hyp. Gauss Cannon | -7/Data Miner | Free Robot Schematics ------------------ Y-54 Guardian | -7/Data Miner | Free E-15 Imp | -7/Data Miner | Free R-10 Processor | -7/Data Miner | Free G-50 Soldier | -7/Data Miner | Free L-41 Fighter | -7/Data Miner | Free H-66 Slayer | -7/Data Miner | Free X-62 Marksman | -7/Data Miner | Free Fabricated ------------ Coolant Injector | x2 | -7/Factory | Preloaded Plasma Flamer | x1 | -7/Factory | Authchip Plasma Flamer | x1 | -7/Factory | Authchip Plasma Flamer | x1 | -7/Factory | Authchip B-48 Gladiator | x3 | -7/Factory | Preloaded Imp. Weapon Shielding | x2 | -7/Factory | Authchip Plasma Flamer | x1 | -7/Factory Alien Tech Used ----------------- None Achievements -------------- None Challenges ------------ None Game ------ Seed CooledPortableFalx Manual? 0 Play Time 01:19:35 Cumulative 400.3 hours Start 2022.06.20 @ 21:53:07 End 2022.06.20 @ 23:10:02 Sessions 1 Manual Loads 0 Difficulty Rogue Special Mode None Game No. 106 Rogue 106 Adventurer 0 Explorer 0 Win Type - Total 20 Types 15/1/3/0/0/0/0/1/0 Lore% 91 Gallery% 92 Achievement% 77 Wizard Run 0 Options --------- ASCII 0 Keyboard 0 Movement Numpad Keybinds 0 Fullscreen 1 Font 14/SmallcapsGlow Map View 84x54 Tactical HUD 1 Map Filters NONE Filters NONE Steam 1 RUN: 8fbea4c1-ebd9-47cc-b90c-e8214c5b80da